[Event "Titled Tuesday Blitz March 22 Early 2022"]
[White "Martin Duque, Jesus"]
[Black "Mekhane, Adam"]
[WhiteFideId "2208954"]
[BlackFideId "36050601"]
[WhiteElo "2243"]
[BlackElo "2002"]
[Result "1-0"]
[Round "04"]
[TimeControl "180+1"]
[Date "2022.03.22"]
[WhiteClock "0:01:50"]
[BlackClock "0:00:02"]

1. Nf3 {[%clk 0:02:59]}  Nf6 {[%clk 0:02:59]} 2. b3 {[%clk 0:02:57]}  g6 {[%clk 0:02:57]} 3. Bb2 {[%clk 0:02:57]}  Bg7 {[%clk 0:02:58]} 4. g3 {[%clk 0:02:58]}  O-O {[%clk 0:02:57]} 5. Bg2 {[%clk 0:02:58]}  d6 {[%clk 0:02:53]} 6. d4 {[%clk 0:02:58]}  Nbd7 {[%clk 0:02:37]} 7. O-O {[%clk 0:02:57]}  Qe8 {[%clk 0:02:35]} 8. Re1 {[%clk 0:02:54]}  Ne4 {[%clk 0:02:24]} 9. Nfd2 {[%clk 0:02:45]}  Nxd2 {[%clk 0:02:18]} 10. Qxd2 {[%clk 0:02:45]}  e5 {[%clk 0:02:19]} 11. c4 {[%clk 0:02:43]}  exd4 {[%clk 0:02:16]} 12. Bxd4 {[%clk 0:02:43]}  Bxd4 {[%clk 0:02:15]} 13. Qxd4 {[%clk 0:02:44]}  Qe5 {[%clk 0:02:15]} 14. e3 {[%clk 0:02:43]}  Re8 {[%clk 0:02:11]} 15. Nc3 {[%clk 0:02:43]}  Qxd4 {[%clk 0:01:42]} 16. exd4 {[%clk 0:02:44]}  Nf6 {[%clk 0:01:31]} 17. Nb5 {[%clk 0:02:43]}  Bd7 {[%clk 0:01:13]} 18. Nxc7 {[%clk 0:02:40]}  Rxe1+ {[%clk 0:01:11]} 19. Rxe1 {[%clk 0:02:41]}  Rc8 {[%clk 0:01:11]} 20. Nd5 {[%clk 0:02:39]}  Nxd5 {[%clk 0:01:09]} 21. Bxd5 {[%clk 0:02:40]}  Bc6 {[%clk 0:01:09]} 22. Bxc6 {[%clk 0:02:37]}  Rxc6 {[%clk 0:00:56]} 23. Re7 {[%clk 0:02:38]}  Rb6 {[%clk 0:00:34]} 24. Kg2 {[%clk 0:02:38]}  Kf8 {[%clk 0:00:33]} 25. Rc7 {[%clk 0:02:38]}  h5 {[%clk 0:00:30]} 26. h4 {[%clk 0:02:38]}  Kg7 {[%clk 0:00:28]} 27. Kf3 {[%clk 0:02:38]}  Kf6 {[%clk 0:00:28]} 28. Ke4 {[%clk 0:02:38]}  Ra6 {[%clk 0:00:27]} 29. Rxb7 {[%clk 0:02:31]}  Rxa2 {[%clk 0:00:28]} 30. f3 {[%clk 0:02:24]}  Rb2 {[%clk 0:00:21]} 31. g4 {[%clk 0:02:23]}  a5 {[%clk 0:00:20]} 32. g5+ {[%clk 0:02:23]}  Kg7 {[%clk 0:00:19]} 33. Rb5 {[%clk 0:02:22]}  Kf8 {[%clk 0:00:18]} 34. f4 {[%clk 0:02:21]}  Ke7 {[%clk 0:00:15]} 35. f5 {[%clk 0:02:21]}  gxf5+ {[%clk 0:00:14]} 36. Kxf5 {[%clk 0:02:22]}  Rf2+ {[%clk 0:00:14]} 37. Ke4 {[%clk 0:02:22]}  Rh2 {[%clk 0:00:14]} 38. Rxa5 {[%clk 0:02:18]}  Rxh4+ {[%clk 0:00:14]} 39. Kd5 {[%clk 0:02:16]}  Rg4 {[%clk 0:00:12]} 40. Ra7+ {[%clk 0:02:16]}  Kf8 {[%clk 0:00:11]} 41. Kxd6 {[%clk 0:02:15]}  Rxg5 {[%clk 0:00:12]} 42. c5 {[%clk 0:02:13]}  h4 {[%clk 0:00:11]} 43. c6 {[%clk 0:02:13]}  Rg6+ {[%clk 0:00:11]} 44. Kd7 {[%clk 0:02:13]}  h3 {[%clk 0:00:07]} 45. c7 {[%clk 0:02:11]}  h2 {[%clk 0:00:05]} 46. c8=Q+ {[%clk 0:02:11]}  Kg7 {[%clk 0:00:06]} 47. Ra1 {[%clk 0:01:59]}  f5 {[%clk 0:00:03]} 48. Rh1 {[%clk 0:01:54]}  f4 {[%clk 0:00:02]} 49. Ke7 {[%clk 0:01:51]}  f3 {[%clk 0:00:02]} 50. Qf8+ {[%clk 0:01:50]} 1-0


[Site "https://www.chess.com"]

[Event "Titled Tuesday Blitz March 22 Early 2022"]
[White "MikeKorovin"]
[Black "Garagulya, Konstantin"]
[BlackFideId "4128931"]
[WhiteElo "2739"]
[BlackElo "2329"]
[Result "1-0"]
[Round "04"]
[TimeControl "180+1"]
[Date "2022.03.22"]
[WhiteClock "0:01:17"]
[BlackClock "0:00:02"]

1. Nf3 {[%clk 0:03:00]}  Nf6 {[%clk 0:01:42]} 2. b3 {[%clk 0:03:00]}  e6 {[%clk 0:01:41]} 3. Bb2 {[%clk 0:03:01]}  d5 {[%clk 0:01:42]} 4. d3 {[%clk 0:03:01]}  a5 {[%clk 0:01:43]} 5. a3 {[%clk 0:03:01]}  Bd6 {[%clk 0:01:42]} 6. Nbd2 {[%clk 0:03:02]}  O-O {[%clk 0:01:43]} 7. e4 {[%clk 0:03:02]}  Nbd7 {[%clk 0:01:42]} 8. e5 {[%clk 0:03:02]}  Be7 {[%clk 0:01:10]} 9. exf6 {[%clk 0:03:00]}  Bxf6 {[%clk 0:01:10]} 10. Bxf6 {[%clk 0:02:58]}  Qxf6 {[%clk 0:01:11]} 11. d4 {[%clk 0:02:57]}  c5 {[%clk 0:01:09]} 12. c3 {[%clk 0:02:53]}  e5 {[%clk 0:00:55]} 13. dxe5 {[%clk 0:02:15]}  Nxe5 {[%clk 0:00:56]} 14. Be2 {[%clk 0:02:15]}  Nxf3+ {[%clk 0:00:30]} 15. Nxf3 {[%clk 0:02:16]}  Qxc3+ {[%clk 0:00:30]} 16. Nd2 {[%clk 0:02:16]}  Be6 {[%clk 0:00:24]} 17. O-O {[%clk 0:02:15]}  a4 {[%clk 0:00:23]} 18. Rc1 {[%clk 0:02:15]}  Qa5 {[%clk 0:00:21]} 19. bxa4 {[%clk 0:02:14]}  Rfc8 {[%clk 0:00:19]} 20. Nb3 {[%clk 0:02:11]}  Qa7 {[%clk 0:00:17]} 21. Bf3 {[%clk 0:02:10]}  b6 {[%clk 0:00:16]} 22. Nd2 {[%clk 0:01:50]}  Qxa4 {[%clk 0:00:15]} 23. Qxa4 {[%clk 0:01:48]}  Rxa4 {[%clk 0:00:16]} 24. Rb1 {[%clk 0:01:49]}  Rxa3 {[%clk 0:00:16]} 25. Rxb6 {[%clk 0:01:48]}  c4 {[%clk 0:00:16]} 26. Rc1 {[%clk 0:01:37]}  g5 {[%clk 0:00:15]} 27. h3 {[%clk 0:01:36]}  Kg7 {[%clk 0:00:12]} 28. Bg4 {[%clk 0:01:33]}  Bxg4 {[%clk 0:00:10]} 29. hxg4 {[%clk 0:01:34]}  Rc5 {[%clk 0:00:07]} 30. Nf3 {[%clk 0:01:33]}  h6 {[%clk 0:00:06]} 31. Nd4 {[%clk 0:01:32]}  c3 {[%clk 0:00:07]} 32. Rb3 {[%clk 0:01:27]}  Rxb3 {[%clk 0:00:06]} 33. Nxb3 {[%clk 0:01:28]}  Rc4 {[%clk 0:00:05]} 34. Kf1 {[%clk 0:01:27]}  Rxg4 {[%clk 0:00:03]} 35. Rxc3 {[%clk 0:01:26]}  Rb4 {[%clk 0:00:04]} 36. Rd3 {[%clk 0:01:25]}  Kf6 {[%clk 0:00:02]} 37. g3 {[%clk 0:01:19]}  h5 {[%clk 0:00:02]} 38. Nd2 {[%clk 0:01:17]} 1-0


[Site "https://www.chess.com"]

[Event "Titled Tuesday Blitz March 22 Early 2022"]
[White "Mikhailovsky, Vladimir"]
[Black "Le Ruyet, Leopold"]
[WhiteFideId "34105414"]
[BlackFideId "645923"]
[WhiteElo "2371"]
[BlackElo "2276"]
[Result "1-0"]
[Round "04"]
[TimeControl "180+1"]
[Date "2022.03.22"]
[WhiteClock "0:01:04"]
[BlackClock "0:00:21"]

1. e4 {[%clk 0:03:00]}  e6 {[%clk 0:02:59]} 2. d4 {[%clk 0:02:59]}  d5 {[%clk 0:03:00]} 3. Nc3 {[%clk 0:02:59]}  Bb4 {[%clk 0:03:00]} 4. exd5 {[%clk 0:02:58]}  exd5 {[%clk 0:03:00]} 5. Bd3 {[%clk 0:02:57]}  Nc6 {[%clk 0:02:59]} 6. Ne2 {[%clk 0:02:57]}  Nge7 {[%clk 0:02:56]} 7. a3 {[%clk 0:02:57]}  Bxc3+ {[%clk 0:02:53]} 8. bxc3 {[%clk 0:02:57]}  Bf5 {[%clk 0:02:52]} 9. Bf4 {[%clk 0:02:56]}  Qd7 {[%clk 0:02:48]} 10. O-O {[%clk 0:02:55]}  O-O {[%clk 0:02:38]} 11. Ng3 {[%clk 0:02:53]}  Bxd3 {[%clk 0:02:37]} 12. cxd3 {[%clk 0:02:43]}  Ng6 {[%clk 0:02:35]} 13. Qf3 {[%clk 0:02:34]}  Rfe8 {[%clk 0:02:12]} 14. h3 {[%clk 0:02:29]}  Re6 {[%clk 0:02:01]} 15. Qg4 {[%clk 0:02:20]}  Nxf4 {[%clk 0:01:48]} 16. Qxf4 {[%clk 0:02:21]}  Rae8 {[%clk 0:01:47]} 17. Rab1 {[%clk 0:02:05]}  b6 {[%clk 0:01:47]} 18. Qg4 {[%clk 0:01:46]}  Ne7 {[%clk 0:01:34]} 19. Nh5 {[%clk 0:01:41]}  Ng6 {[%clk 0:01:32]} 20. f4 {[%clk 0:01:34]}  f5 {[%clk 0:01:06]} 21. Qxf5 {[%clk 0:01:34]}  Rf8 {[%clk 0:00:55]} 22. Qg4 {[%clk 0:01:34]}  Rd6 {[%clk 0:00:49]} 23. f5 {[%clk 0:01:26]}  Nh8 {[%clk 0:00:49]} 24. Rbe1 {[%clk 0:01:20]}  Rh6 {[%clk 0:00:41]} 25. Re5 {[%clk 0:01:15]}  c6 {[%clk 0:00:37]} 26. Rfe1 {[%clk 0:01:14]}  Rxh5 {[%clk 0:00:21]} 27. Re7 {[%clk 0:01:04]} 1-0


[Site "https://www.chess.com"]

[Event "Titled Tuesday Blitz March 22 Early 2022"]
[White "Mikhnenko, Alexander"]
[Black "Voit, Daria"]
[WhiteFideId "34143014"]
[BlackFideId "4182146"]
[WhiteElo "2184"]
[BlackElo "2323"]
[Result "0-1"]
[Round "04"]
[TimeControl "180+1"]
[Date "2022.03.22"]
[WhiteClock "0:00:03"]
[BlackClock "0:00:16"]

1. e4 {[%clk 0:03:00]}  c6 {[%clk 0:02:59]} 2. d4 {[%clk 0:03:00]}  d5 {[%clk 0:03:00]} 3. Nc3 {[%clk 0:03:01]}  dxe4 {[%clk 0:02:59]} 4. Nxe4 {[%clk 0:03:01]}  Nf6 {[%clk 0:03:00]} 5. Nxf6+ {[%clk 0:03:01]}  exf6 {[%clk 0:03:01]} 6. c3 {[%clk 0:03:02]}  Bd6 {[%clk 0:03:01]} 7. Bd3 {[%clk 0:03:02]}  O-O {[%clk 0:03:01]} 8. Qc2 {[%clk 0:03:03]}  Re8+ {[%clk 0:03:01]} 9. Ne2 {[%clk 0:03:03]}  h5 {[%clk 0:02:59]} 10. O-O {[%clk 0:03:04]}  Qc7 {[%clk 0:02:54]} 11. g3 {[%clk 0:02:57]}  h4 {[%clk 0:02:48]} 12. Bf4 {[%clk 0:02:53]}  Bh3 {[%clk 0:02:46]} 13. Rfe1 {[%clk 0:02:52]}  hxg3 {[%clk 0:02:44]} 14. fxg3 {[%clk 0:02:41]}  Nd7 {[%clk 0:02:41]} 15. Bxd6 {[%clk 0:02:39]}  Qxd6 {[%clk 0:02:41]} 16. Nf4 {[%clk 0:02:39]}  Bg4 {[%clk 0:02:41]} 17. Bf5 {[%clk 0:02:34]}  Bxf5 {[%clk 0:02:35]} 18. Qxf5 {[%clk 0:02:35]}  Nf8 {[%clk 0:02:32]} 19. Nd3 {[%clk 0:02:24]}  g6 {[%clk 0:02:30]} 20. Qf2 {[%clk 0:02:22]}  Kg7 {[%clk 0:02:30]} 21. Rxe8 {[%clk 0:02:14]}  Rxe8 {[%clk 0:02:25]} 22. Re1 {[%clk 0:02:14]}  Rxe1+ {[%clk 0:02:22]} 23. Qxe1 {[%clk 0:02:03]}  Qd5 {[%clk 0:02:20]} 24. Nb4 {[%clk 0:02:03]}  Qf3 {[%clk 0:02:18]} 25. Qf2 {[%clk 0:02:00]}  Qd1+ {[%clk 0:02:17]} 26. Qf1 {[%clk 0:01:56]}  Qd2 {[%clk 0:02:15]} 27. Qf2 {[%clk 0:01:57]}  Qc1+ {[%clk 0:02:16]} 28. Kg2 {[%clk 0:01:55]}  Ne6 {[%clk 0:02:16]} 29. h4 {[%clk 0:01:41]}  Qb1 {[%clk 0:01:55]} 30. d5 {[%clk 0:01:23]}  cxd5 {[%clk 0:01:29]} 31. Nxd5 {[%clk 0:01:17]}  f5 {[%clk 0:01:29]} 32. a3 {[%clk 0:01:07]}  Qd3 {[%clk 0:01:18]} 33. Nf4 {[%clk 0:00:45]}  Qe4+ {[%clk 0:01:15]} 34. Kh2 {[%clk 0:00:41]}  Nxf4 {[%clk 0:01:08]} 35. gxf4 {[%clk 0:00:41]}  Kh6 {[%clk 0:00:50]} 36. Qd4 {[%clk 0:00:18]}  Qe2+ {[%clk 0:00:46]} 37. Kg3 {[%clk 0:00:16]}  Qg4+ {[%clk 0:00:46]} 38. Kf2 {[%clk 0:00:13]}  Qxh4+ {[%clk 0:00:47]} 39. Kf3 {[%clk 0:00:12]}  Qh1+ {[%clk 0:00:45]} 40. Kf2 {[%clk 0:00:11]}  Qh2+ {[%clk 0:00:45]} 41. Kf3 {[%clk 0:00:11]}  Kh7 {[%clk 0:00:38]} 42. Qf6 {[%clk 0:00:11]}  Qh1+ {[%clk 0:00:36]} 43. Kf2 {[%clk 0:00:10]}  Qd5 {[%clk 0:00:28]} 44. a4 {[%clk 0:00:07]}  a6 {[%clk 0:00:25]} 45. a5 {[%clk 0:00:06]}  Kg8 {[%clk 0:00:24]} 46. Kg3 {[%clk 0:00:05]}  Qxa5 {[%clk 0:00:23]} 47. Kh4 {[%clk 0:00:05]}  Qc5 {[%clk 0:00:19]} 48. Qd8+ {[%clk 0:00:03]}  Kg7 {[%clk 0:00:18]} 49. Qd4+ {[%clk 0:00:02]}  Qxd4 {[%clk 0:00:18]} 50. cxd4 {[%clk 0:00:03]}  f6 {[%clk 0:00:16]} 0-1


[Site "https://www.chess.com"]

[Event "Titled Tuesday Blitz March 22 Early 2022"]
[White "Milanovic, Marko"]
[Black "Gabdrakhmanov, Azat"]
[WhiteFideId "980129"]
[BlackFideId "34189197"]
[WhiteElo "2159"]
[BlackElo "2279"]
[Result "0-1"]
[Round "04"]
[TimeControl "180+1"]
[Date "2022.03.22"]
[WhiteClock "0:00:01"]
[BlackClock "0:00:18"]

1. e4 {[%clk 0:03:00]}  c5 {[%clk 0:03:00]} 2. Nf3 {[%clk 0:03:01]}  e6 {[%clk 0:03:00]} 3. g3 {[%clk 0:02:59]}  Nc6 {[%clk 0:02:59]} 4. Bg2 {[%clk 0:02:59]}  Nf6 {[%clk 0:03:00]} 5. Qe2 {[%clk 0:02:50]}  e5 {[%clk 0:02:59]} 6. O-O {[%clk 0:02:50]}  Be7 {[%clk 0:02:59]} 7. c3 {[%clk 0:02:50]}  O-O {[%clk 0:02:57]} 8. d3 {[%clk 0:02:41]}  Re8 {[%clk 0:02:56]} 9. a4 {[%clk 0:02:33]}  Bf8 {[%clk 0:02:56]} 10. Na3 {[%clk 0:02:33]}  d5 {[%clk 0:02:56]} 11. exd5 {[%clk 0:02:30]}  Nxd5 {[%clk 0:02:55]} 12. Re1 {[%clk 0:02:29]}  f6 {[%clk 0:02:54]} 13. Nc4 {[%clk 0:02:26]}  Be6 {[%clk 0:02:52]} 14. Bd2 {[%clk 0:02:23]}  Qd7 {[%clk 0:02:52]} 15. a5 {[%clk 0:02:15]}  Rad8 {[%clk 0:02:52]} 16. Red1 {[%clk 0:02:10]}  Bh3 {[%clk 0:02:15]} 17. Ne3 {[%clk 0:01:58]}  Bxg2 {[%clk 0:02:03]} 18. Kxg2 {[%clk 0:01:56]}  Nf4+ {[%clk 0:02:00]} 19. gxf4 {[%clk 0:01:53]}  exf4 {[%clk 0:02:01]} 20. Be1 {[%clk 0:01:34]}  fxe3 {[%clk 0:01:59]} 21. fxe3 {[%clk 0:01:35]}  Qg4+ {[%clk 0:01:52]} 22. Kf2 {[%clk 0:01:34]}  Bd6 {[%clk 0:01:39]} 23. Bd2 {[%clk 0:01:20]}  Qh5 {[%clk 0:01:33]} 24. Kg2 {[%clk 0:01:15]}  Bc7 {[%clk 0:01:29]} 25. e4 {[%clk 0:01:02]}  Ne5 {[%clk 0:01:11]} 26. Bf4 {[%clk 0:00:50]}  Qg4+ {[%clk 0:01:05]} 27. Bg3 {[%clk 0:00:49]}  Ng6 {[%clk 0:01:05]} 28. Qf2 {[%clk 0:00:41]}  Nf4+ {[%clk 0:00:59]} 29. Kh1 {[%clk 0:00:39]}  Nxd3 {[%clk 0:00:59]} 30. Qe3 {[%clk 0:00:18]}  Bxg3 {[%clk 0:00:59]} 31. Rxd3 {[%clk 0:00:18]}  Bf4 {[%clk 0:00:57]} 32. Qe2 {[%clk 0:00:15]}  Rxd3 {[%clk 0:00:51]} 33. Qxd3 {[%clk 0:00:16]}  Qe6 {[%clk 0:00:51]} 34. Re1 {[%clk 0:00:16]}  Bc7 {[%clk 0:00:47]} 35. Qe3 {[%clk 0:00:14]}  b6 {[%clk 0:00:46]} 36. Nh4 {[%clk 0:00:13]}  Qe5 {[%clk 0:00:42]} 37. Nf3 {[%clk 0:00:13]}  Qd6 {[%clk 0:00:38]} 38. axb6 {[%clk 0:00:13]}  axb6 {[%clk 0:00:38]} 39. Qe2 {[%clk 0:00:12]}  h5 {[%clk 0:00:37]} 40. Rd1 {[%clk 0:00:12]}  Qf4 {[%clk 0:00:36]} 41. Re1 {[%clk 0:00:07]}  Kh7 {[%clk 0:00:25]} 42. Nd2 {[%clk 0:00:06]}  b5 {[%clk 0:00:22]} 43. Rf1 {[%clk 0:00:05]}  Qe5 {[%clk 0:00:21]} 44. Rf5 {[%clk 0:00:03]}  Qxf5 {[%clk 0:00:21]} 45. Qxb5 {[%clk 0:00:01]}  Rxe4 {[%clk 0:00:18]} 46. Nxe4 {[%clk 0:00:01]}  Qxe4+ {[%clk 0:00:19]} 47. Kg1 {[%clk 0:00:02]}  Qe3+ {[%clk 0:00:19]} 48. Kg2 {[%clk 0:00:01]}  Qd2+ {[%clk 0:00:18]} 49. Kh3 {[%clk 0:00:01]}  Qxh2# {[%clk 0:00:18]} 0-1


[Site "https://www.chess.com"]

[Event "Titled Tuesday Blitz March 22 Early 2022"]
[White "Milchev, Nikolay"]
[Black "Urazayev, Arystanbek"]
[WhiteFideId "2906090"]
[BlackFideId "13709810"]
[WhiteElo "2449"]
[BlackElo "2393"]
[Result "0-1"]
[Round "04"]
[TimeControl "180+1"]
[Date "2022.03.22"]
[WhiteClock "0:02:16"]
[BlackClock "0:01:50"]

1. Nf3 {[%clk 0:03:00]}  d5 {[%clk 0:03:00]} 2. c4 {[%clk 0:03:01]}  e6 {[%clk 0:03:00]} 3. g3 {[%clk 0:03:00]}  dxc4 {[%clk 0:02:59]} 4. Qa4+ {[%clk 0:03:00]}  Nd7 {[%clk 0:03:00]} 5. Qxc4 {[%clk 0:03:01]}  a6 {[%clk 0:03:00]} 6. a4 {[%clk 0:02:57]}  b5 {[%clk 0:03:00]} 7. Qc2 {[%clk 0:02:58]}  Bb7 {[%clk 0:03:00]} 8. Bg2 {[%clk 0:02:58]}  c5 {[%clk 0:03:00]} 9. O-O {[%clk 0:02:58]}  Ngf6 {[%clk 0:03:01]} 10. Na3 {[%clk 0:02:57]}  Qb6 {[%clk 0:02:55]} 11. d3 {[%clk 0:02:56]}  Be7 {[%clk 0:02:55]} 12. e4 {[%clk 0:02:53]}  O-O {[%clk 0:02:55]} 13. h3 {[%clk 0:02:53]}  Rac8 {[%clk 0:02:51]} 14. Be3 {[%clk 0:02:53]}  h6 {[%clk 0:02:42]} 15. Rfc1 {[%clk 0:02:48]}  Rfd8 {[%clk 0:02:06]} 16. Qb3 {[%clk 0:02:47]}  Bc6 {[%clk 0:02:02]} 17. axb5 {[%clk 0:02:45]}  axb5 {[%clk 0:02:02]} 18. Nd2 {[%clk 0:02:35]}  Qb7 {[%clk 0:02:01]} 19. f4 {[%clk 0:02:32]}  c4 {[%clk 0:01:50]} 20. dxc4 {[%clk 0:02:29]}  Nc5 {[%clk 0:01:51]} 21. Bxc5 {[%clk 0:02:24]}  Bxc5+ {[%clk 0:01:50]} 22. Kh2 {[%clk 0:02:23]}  Rxd2 {[%clk 0:01:51]} 23. cxb5 {[%clk 0:02:16]}  Bxe4 {[%clk 0:01:51]} 24. Rg1 {[%clk 0:02:15]}  Bxg1+ {[%clk 0:01:50]} 25. Rxg1 {[%clk 0:02:16]}  Bxg2 {[%clk 0:01:50]} 26. Rxg2 {[%clk 0:02:16]}  Qxg2# {[%clk 0:01:50]} 0-1


[Site "https://www.chess.com"]

[Event "Titled Tuesday Blitz March 22 Early 2022"]
[White "Moskalenko, Alexander"]
[Black "Obolentseva, Alexandra"]
[WhiteFideId "4155351"]
[BlackFideId "24153648"]
[WhiteElo "2475"]
[BlackElo "2113"]
[Result "1-0"]
[Round "04"]
[TimeControl "180+1"]
[Date "2022.03.22"]
[WhiteClock "0:01:45"]
[BlackClock "0:00:44"]

1. Nf3 {[%clk 0:02:58]}  Nf6 {[%clk 0:03:00]} 2. b3 {[%clk 0:02:57]}  g6 {[%clk 0:02:57]} 3. Bb2 {[%clk 0:02:58]}  Bg7 {[%clk 0:02:57]} 4. g3 {[%clk 0:02:59]}  O-O {[%clk 0:02:58]} 5. Bg2 {[%clk 0:02:59]}  d5 {[%clk 0:02:58]} 6. c4 {[%clk 0:02:57]}  c5 {[%clk 0:02:51]} 7. cxd5 {[%clk 0:02:54]}  Qxd5 {[%clk 0:02:51]} 8. O-O {[%clk 0:02:52]}  Qh5 {[%clk 0:02:47]} 9. d4 {[%clk 0:02:49]}  Nc6 {[%clk 0:02:44]} 10. dxc5 {[%clk 0:02:49]}  Qxc5 {[%clk 0:02:43]} 11. Nbd2 {[%clk 0:02:45]}  Rd8 {[%clk 0:02:37]} 12. Rc1 {[%clk 0:02:44]}  Qa5 {[%clk 0:02:36]} 13. a3 {[%clk 0:02:37]}  Bg4 {[%clk 0:02:34]} 14. b4 {[%clk 0:02:36]}  Qb6 {[%clk 0:02:32]} 15. Qb3 {[%clk 0:02:34]}  Be6 {[%clk 0:02:26]} 16. Qa4 {[%clk 0:02:28]}  Rac8 {[%clk 0:02:22]} 17. Nc4 {[%clk 0:02:26]}  Qa6 {[%clk 0:01:58]} 18. Qxa6 {[%clk 0:02:23]}  bxa6 {[%clk 0:01:59]} 19. Ne3 {[%clk 0:02:18]}  Bb3 {[%clk 0:01:38]} 20. Ne5 {[%clk 0:02:05]}  Nxe5 {[%clk 0:01:38]} 21. Bxe5 {[%clk 0:02:06]}  Nd7 {[%clk 0:01:34]} 22. Bxg7 {[%clk 0:02:04]}  Kxg7 {[%clk 0:01:35]} 23. Bb7 {[%clk 0:02:02]}  Rb8 {[%clk 0:01:12]} 24. Bxa6 {[%clk 0:02:00]}  Rb6 {[%clk 0:01:12]} 25. Bc4 {[%clk 0:01:53]}  Bxc4 {[%clk 0:01:09]} 26. Nxc4 {[%clk 0:01:54]}  Re6 {[%clk 0:01:07]} 27. Rfd1 {[%clk 0:01:51]}  Rxe2 {[%clk 0:01:00]} 28. Na5 {[%clk 0:01:49]}  Re6 {[%clk 0:00:49]} 29. Nb7 {[%clk 0:01:46]}  Rb8 {[%clk 0:00:44]} 30. Rxd7 {[%clk 0:01:45]} 1-0


[Site "https://www.chess.com"]

[Event "Titled Tuesday Blitz March 22 Early 2022"]
[White "Murzin, Volodar"]
[Black "Ljukin, Sergei"]
[WhiteFideId "44155573"]
[BlackFideId "14102200"]
[WhiteElo "2585"]
[BlackElo "2312"]
[Result "0-1"]
[Round "04"]
[TimeControl "180+1"]
[Date "2022.03.22"]
[WhiteClock "0:00:03"]
[BlackClock "0:00:07"]

1. e4 {[%clk 0:02:51]}  e6 {[%clk 0:02:59]} 2. d3 {[%clk 0:02:47]}  d5 {[%clk 0:02:59]} 3. Nd2 {[%clk 0:02:48]}  Nf6 {[%clk 0:02:59]} 4. Ngf3 {[%clk 0:02:47]}  Be7 {[%clk 0:03:00]} 5. g3 {[%clk 0:02:47]}  O-O {[%clk 0:03:00]} 6. Bg2 {[%clk 0:02:48]}  c5 {[%clk 0:03:01]} 7. O-O {[%clk 0:02:48]}  Nc6 {[%clk 0:03:01]} 8. c3 {[%clk 0:02:48]}  b5 {[%clk 0:03:00]} 9. Re1 {[%clk 0:02:48]}  b4 {[%clk 0:02:58]} 10. e5 {[%clk 0:02:48]}  Nd7 {[%clk 0:02:57]} 11. Nf1 {[%clk 0:02:49]}  bxc3 {[%clk 0:02:53]} 12. bxc3 {[%clk 0:02:50]}  Qa5 {[%clk 0:02:53]} 13. Bd2 {[%clk 0:02:48]}  Qa3 {[%clk 0:02:48]} 14. h4 {[%clk 0:02:43]}  Rb8 {[%clk 0:02:48]} 15. N1h2 {[%clk 0:02:41]}  Nb6 {[%clk 0:02:34]} 16. Ng4 {[%clk 0:02:26]}  Na4 {[%clk 0:02:33]} 17. Rc1 {[%clk 0:02:20]}  Ba6 {[%clk 0:02:29]} 18. Bg5 {[%clk 0:02:12]}  Nb2 {[%clk 0:02:27]} 19. Qd2 {[%clk 0:02:04]}  Nxd3 {[%clk 0:02:26]} 20. Bf6 {[%clk 0:02:02]}  Rfc8 {[%clk 0:01:07]} 21. Qg5 {[%clk 0:01:05]}  Bf8 {[%clk 0:01:07]} 22. Nh6+ {[%clk 0:01:01]}  Kh8 {[%clk 0:01:07]} 23. Nxf7+ {[%clk 0:01:01]}  Kg8 {[%clk 0:01:07]} 24. Nh6+ {[%clk 0:00:57]}  Kh8 {[%clk 0:01:07]} 25. Bh3 {[%clk 0:00:56]}  Nxe1 {[%clk 0:00:26]} 26. Nxe1 {[%clk 0:00:18]}  Re8 {[%clk 0:00:23]} 27. Ng2 {[%clk 0:00:14]}  Bd3 {[%clk 0:00:19]} 28. h5 {[%clk 0:00:04]}  c4 {[%clk 0:00:11]} 29. Kh2 {[%clk 0:00:04]}  Qb2 {[%clk 0:00:10]} 30. Re1 {[%clk 0:00:03]}  Qxf2 {[%clk 0:00:10]} 31. Ng4 {[%clk 0:00:03]}  Qd2 {[%clk 0:00:09]} 32. Qxd2 {[%clk 0:00:03]}  gxf6 {[%clk 0:00:08]} 33. exf6 {[%clk 0:00:04]}  d4 {[%clk 0:00:07]} 34. cxd4 {[%clk 0:00:03]}  Nxd4 {[%clk 0:00:06]} 35. Qg5 {[%clk 0:00:03]}  Nf3+ {[%clk 0:00:07]} 36. Kh1 {[%clk 0:00:03]}  Nxg5 {[%clk 0:00:07]} 37. Ne5 {[%clk 0:00:03]}  Nxh3 {[%clk 0:00:07]} 38. Nf7+ {[%clk 0:00:02]}  Kg8 {[%clk 0:00:08]} 39. Ne5 {[%clk 0:00:03]}  Rb7 {[%clk 0:00:08]} 40. Nh4 {[%clk 0:00:03]}  Rf7 {[%clk 0:00:08]} 41. g4 {[%clk 0:00:02]}  Rxf6 {[%clk 0:00:08]} 42. Kg2 {[%clk 0:00:02]}  Ng5 {[%clk 0:00:07]} 43. Kg3 {[%clk 0:00:03]}  Ne4+ {[%clk 0:00:07]} 44. Rxe4 {[%clk 0:00:03]}  Bxe4 {[%clk 0:00:07]} 0-1


[Site "https://www.chess.com"]